[Event "Titled Tuesday Blitz February 07 Early 2023"]
[White "Perez Gormaz, Matias"]
[Black "Avalos Parra, Joao"]
[WhiteFideId "3406342"]
[BlackFideId "3402541"]
[WhiteElo "2406"]
[BlackElo "2185"]
[Result "0-1"]
[Round "07"]
[TimeControl "180+2"]
[Date "2023.02.07"]
[WhiteClock "0:00:53"]
[BlackClock "0:00:55"]

1. Nf3 {[%clk 0:02:59]}  d5 {[%clk 0:02:58]} 2. g3 {[%clk 0:02:57]}  e6 {[%clk 0:02:58]} 3. Bg2 {[%clk 0:02:58]}  Nf6 {[%clk 0:02:55]} 4. O-O {[%clk 0:02:59]}  Be7 {[%clk 0:02:55]} 5. c4 {[%clk 0:02:59]}  d4 {[%clk 0:02:54]} 6. d3 {[%clk 0:02:50]}  O-O {[%clk 0:02:54]} 7. e4 {[%clk 0:02:50]}  c5 {[%clk 0:02:51]} 8. e5 {[%clk 0:02:48]}  Nfd7 {[%clk 0:02:51]} 9. Re1 {[%clk 0:02:48]}  Nc6 {[%clk 0:02:51]} 10. h4 {[%clk 0:02:48]}  h6 {[%clk 0:02:50]} 11. Bf4 {[%clk 0:02:44]}  Re8 {[%clk 0:02:47]} 12. Nbd2 {[%clk 0:02:43]}  Rb8 {[%clk 0:02:46]} 13. Nf1 {[%clk 0:02:33]}  b5 {[%clk 0:02:43]} 14. b3 {[%clk 0:02:33]}  bxc4 {[%clk 0:02:43]} 15. bxc4 {[%clk 0:02:34]}  Rb2 {[%clk 0:02:37]} 16. N1h2 {[%clk 0:02:31]}  Bf8 {[%clk 0:02:33]} 17. h5 {[%clk 0:02:21]}  Bb7 {[%clk 0:02:25]} 18. g4 {[%clk 0:02:14]}  Be7 {[%clk 0:02:19]} 19. Qc1 {[%clk 0:02:10]}  Rb4 {[%clk 0:02:11]} 20. g5 {[%clk 0:02:05]}  hxg5 {[%clk 0:02:10]} 21. Nxg5 {[%clk 0:02:05]}  Ndxe5 {[%clk 0:02:00]} 22. Nxe6 {[%clk 0:01:50]}  fxe6 {[%clk 0:01:32]} 23. Bxe5 {[%clk 0:01:50]}  Nxe5 {[%clk 0:01:31]} 24. Rxe5 {[%clk 0:01:51]}  Bxg2 {[%clk 0:01:29]} 25. Kxg2 {[%clk 0:01:52]}  Bd6 {[%clk 0:01:16]} 26. Re4 {[%clk 0:01:46]}  Bxh2 {[%clk 0:01:07]} 27. Kxh2 {[%clk 0:01:47]}  Rf8 {[%clk 0:01:07]} 28. Qd2 {[%clk 0:01:15]}  Qb8+ {[%clk 0:01:03]} 29. Kg1 {[%clk 0:01:06]}  Rb2 {[%clk 0:01:02]} 30. Qg5 {[%clk 0:01:05]}  Rfxf2 {[%clk 0:00:57]} 31. Rh4 {[%clk 0:00:53]}  Rg2+ {[%clk 0:00:55]} 32. Qxg2 {[%clk 0:00:53]}  Rxg2+ {[%clk 0:00:55]} 33. Kxg2 {[%clk 0:00:53]}  Qb2+ {[%clk 0:00:55]} 0-1


[Site "https://www.chess.com"]

[Event "Titled Tuesday Blitz February 07 Early 2023"]
[White "Ozates, Tuna"]
[Black "Buchenau, Frank"]
[WhiteFideId "6354521"]
[BlackFideId "4604350"]
[WhiteElo "2251"]
[BlackElo "2222"]
[Result "1-0"]
[Round "07"]
[TimeControl "180+2"]
[Date "2023.02.07"]
[WhiteClock "0:01:20"]
[BlackClock "0:00:09"]

1. e4 {[%clk 0:02:59]}  e6 {[%clk 0:03:00]} 2. d3 {[%clk 0:02:56]}  d5 {[%clk 0:03:00]} 3. Nd2 {[%clk 0:02:57]}  Nf6 {[%clk 0:02:59]} 4. Ngf3 {[%clk 0:02:57]}  b6 {[%clk 0:02:59]} 5. g3 {[%clk 0:02:56]}  dxe4 {[%clk 0:02:59]} 6. dxe4 {[%clk 0:02:56]}  Bb7 {[%clk 0:02:58]} 7. Qe2 {[%clk 0:02:54]}  Ba6 {[%clk 0:02:57]} 8. c4 {[%clk 0:02:48]}  Nc6 {[%clk 0:02:57]} 9. Bg2 {[%clk 0:02:45]}  e5 {[%clk 0:02:57]} 10. O-O {[%clk 0:02:44]}  Bc5 {[%clk 0:02:57]} 11. b3 {[%clk 0:02:42]}  O-O {[%clk 0:02:54]} 12. Bb2 {[%clk 0:02:42]}  Nd4 {[%clk 0:02:53]} 13. Bxd4 {[%clk 0:02:39]}  Bxd4 {[%clk 0:02:52]} 14. Rad1 {[%clk 0:02:38]}  c5 {[%clk 0:02:43]} 15. Rfe1 {[%clk 0:02:37]}  Qe7 {[%clk 0:02:40]} 16. Nh4 {[%clk 0:02:35]}  g6 {[%clk 0:02:40]} 17. Nf1 {[%clk 0:02:34]}  Rad8 {[%clk 0:02:25]} 18. Ne3 {[%clk 0:02:29]}  Bxe3 {[%clk 0:02:24]} 19. Qxe3 {[%clk 0:02:27]}  Rxd1 {[%clk 0:02:19]} 20. Rxd1 {[%clk 0:02:27]}  Rd8 {[%clk 0:02:19]} 21. Rd5 {[%clk 0:02:27]}  Nxd5 {[%clk 0:02:16]} 22. exd5 {[%clk 0:02:28]}  f5 {[%clk 0:02:05]} 23. Nf3 {[%clk 0:02:24]}  e4 {[%clk 0:01:58]} 24. Ng5 {[%clk 0:02:24]}  Bc8 {[%clk 0:01:55]} 25. f3 {[%clk 0:02:20]}  h6 {[%clk 0:01:53]} 26. Nh3 {[%clk 0:02:18]}  g5 {[%clk 0:01:40]} 27. fxe4 {[%clk 0:02:15]}  Re8 {[%clk 0:01:37]} 28. Nf2 {[%clk 0:02:13]}  Qe5 {[%clk 0:01:34]} 29. h4 {[%clk 0:02:03]}  f4 {[%clk 0:01:26]} 30. gxf4 {[%clk 0:02:00]}  gxf4 {[%clk 0:01:22]} 31. Qf3 {[%clk 0:01:58]}  Kh7 {[%clk 0:01:18]} 32. Nd3 {[%clk 0:01:54]}  Qd4+ {[%clk 0:01:14]} 33. Kh2 {[%clk 0:01:54]}  Qe3 {[%clk 0:00:55]} 34. Qxf4 {[%clk 0:01:39]}  Qxf4+ {[%clk 0:00:44]} 35. Nxf4 {[%clk 0:01:40]}  Bg4 {[%clk 0:00:38]} 36. d6 {[%clk 0:01:35]}  Kg7 {[%clk 0:00:31]} 37. Kg3 {[%clk 0:01:35]}  h5 {[%clk 0:00:26]} 38. Nd5 {[%clk 0:01:32]}  Kf7 {[%clk 0:00:21]} 39. Kf4 {[%clk 0:01:32]}  Rd8 {[%clk 0:00:19]} 40. e5 {[%clk 0:01:31]}  Ke6 {[%clk 0:00:18]} 41. Nf6 {[%clk 0:01:28]}  Rxd6 {[%clk 0:00:15]} 42. Bd5+ {[%clk 0:01:22]}  Ke7 {[%clk 0:00:13]} 43. Ng8+ {[%clk 0:01:19]}  Kf8 {[%clk 0:00:09]} 44. exd6 {[%clk 0:01:20]} 1-0


[Site "https://www.chess.com"]

[Event "Titled Tuesday Blitz February 07 Early 2023"]
[White "Sanchez, Robert"]
[Black "Reprintsev, Alexander"]
[WhiteFideId "2034360"]
[BlackFideId "14100541"]
[WhiteElo "1966"]
[BlackElo "2253"]
[Result "0-1"]
[Round "07"]
[TimeControl "180+2"]
[Date "2023.02.07"]
[WhiteClock "0:00:42"]
[BlackClock "0:00:57"]

1. Nf3 {[%clk 0:03:00]}  d5 {[%clk 0:02:59]} 2. e3 {[%clk 0:03:00]}  c6 {[%clk 0:02:56]} 3. c4 {[%clk 0:03:00]}  Bg4 {[%clk 0:02:51]} 4. Nc3 {[%clk 0:03:00]}  e6 {[%clk 0:02:50]} 5. b3 {[%clk 0:03:00]}  g6 {[%clk 0:02:46]} 6. Bb2 {[%clk 0:03:00]}  Bg7 {[%clk 0:02:46]} 7. h3 {[%clk 0:03:00]}  Bxf3 {[%clk 0:02:46]} 8. Qxf3 {[%clk 0:02:58]}  Nd7 {[%clk 0:02:44]} 9. O-O-O {[%clk 0:02:46]}  f5 {[%clk 0:02:42]} 10. Qe2 {[%clk 0:02:39]}  Ngf6 {[%clk 0:02:42]} 11. f4 {[%clk 0:02:39]}  a5 {[%clk 0:02:39]} 12. g4 {[%clk 0:02:27]}  O-O {[%clk 0:02:38]} 13. g5 {[%clk 0:02:21]}  Ne4 {[%clk 0:02:37]} 14. Nxe4 {[%clk 0:02:09]}  fxe4 {[%clk 0:02:28]} 15. d3 {[%clk 0:02:06]}  exd3 {[%clk 0:02:27]} 16. Rxd3 {[%clk 0:01:59]}  Qe7 {[%clk 0:02:27]} 17. h4 {[%clk 0:01:58]}  a4 {[%clk 0:02:25]} 18. cxd5 {[%clk 0:01:47]}  exd5 {[%clk 0:02:22]} 19. Bxg7 {[%clk 0:01:41]}  Qxg7 {[%clk 0:02:22]} 20. Qb2 {[%clk 0:01:42]}  axb3 {[%clk 0:02:20]} 21. Qxg7+ {[%clk 0:01:39]}  Kxg7 {[%clk 0:02:20]} 22. Rxb3 {[%clk 0:01:38]}  Nc5 {[%clk 0:02:17]} 23. Rb2 {[%clk 0:01:36]}  Rfe8 {[%clk 0:02:14]} 24. Rh3 {[%clk 0:01:34]}  Ra3 {[%clk 0:02:14]} 25. h5 {[%clk 0:01:26]}  Rexe3 {[%clk 0:02:12]} 26. h6+ {[%clk 0:01:21]}  Kf7 {[%clk 0:02:11]} 27. Rxe3 {[%clk 0:01:21]}  Rxe3 {[%clk 0:02:11]} 28. Rc2 {[%clk 0:01:21]}  b6 {[%clk 0:02:10]} 29. Be2 {[%clk 0:01:17]}  Re4 {[%clk 0:02:07]} 30. Rb2 {[%clk 0:01:15]}  Na4 {[%clk 0:02:01]} 31. Rc2 {[%clk 0:01:15]}  c5 {[%clk 0:01:57]} 32. Bb5 {[%clk 0:01:14]}  Rb4 {[%clk 0:01:45]} 33. Rb2 {[%clk 0:01:08]}  Nc3 {[%clk 0:01:42]} 34. Bc6 {[%clk 0:01:04]}  Rxb2 {[%clk 0:01:08]} 35. Kxb2 {[%clk 0:01:05]}  d4 {[%clk 0:01:05]} 36. Kb3 {[%clk 0:00:58]}  Ne2 {[%clk 0:01:04]} 37. Bd5+ {[%clk 0:00:56]}  Kf8 {[%clk 0:01:03]} 38. Ka4 {[%clk 0:00:44]}  Nxf4 {[%clk 0:01:02]} 39. Be4 {[%clk 0:00:44]}  c4 {[%clk 0:01:01]} 40. Kb5 {[%clk 0:00:44]}  c3 {[%clk 0:00:57]} 41. Kxb6 {[%clk 0:00:42]}  d3 {[%clk 0:00:57]} 0-1


[Site "https://www.chess.com"]

[Event "Titled Tuesday Blitz February 07 Early 2023"]
[White "Jovic, Stanoje"]
[Black "Belov, Alexei"]
[WhiteFideId "905020"]
[BlackFideId "4128206"]
[WhiteElo "2075"]
[BlackElo "2421"]
[Result "0-1"]
[Round "07"]
[TimeControl "180+2"]
[Date "2023.02.07"]
[WhiteClock "0:00:08"]
[BlackClock "0:00:15"]

1. c4 {[%clk 0:03:00]}  e6 {[%clk 0:03:00]} 2. g3 {[%clk 0:02:59]}  d5 {[%clk 0:03:00]} 3. Bg2 {[%clk 0:03:00]}  Nf6 {[%clk 0:03:01]} 4. Nf3 {[%clk 0:03:00]}  Be7 {[%clk 0:03:01]} 5. O-O {[%clk 0:03:00]}  O-O {[%clk 0:03:02]} 6. d4 {[%clk 0:03:00]}  dxc4 {[%clk 0:03:02]} 7. Ne5 {[%clk 0:03:01]}  Nc6 {[%clk 0:03:02]} 8. Bxc6 {[%clk 0:03:00]}  bxc6 {[%clk 0:03:02]} 9. Nxc6 {[%clk 0:03:01]}  Qe8 {[%clk 0:03:03]} 10. Nxe7+ {[%clk 0:03:01]}  Qxe7 {[%clk 0:03:03]} 11. Na3 {[%clk 0:03:02]}  c5 {[%clk 0:03:00]} 12. Nxc4 {[%clk 0:03:02]}  Rd8 {[%clk 0:03:00]} 13. b3 {[%clk 0:03:02]}  cxd4 {[%clk 0:02:57]} 14. Ba3 {[%clk 0:03:02]}  Qb7 {[%clk 0:02:49]} 15. Rc1 {[%clk 0:02:56]}  Qd5 {[%clk 0:02:47]} 16. Be7 {[%clk 0:02:54]}  Bb7 {[%clk 0:02:36]} 17. f3 {[%clk 0:02:53]}  Rd7 {[%clk 0:02:36]} 18. Bxf6 {[%clk 0:02:53]}  gxf6 {[%clk 0:02:36]} 19. Qd2 {[%clk 0:02:49]}  Kg7 {[%clk 0:02:30]} 20. Qa5 {[%clk 0:02:48]}  d3 {[%clk 0:02:01]} 21. Qxd5 {[%clk 0:02:41]}  exd5 {[%clk 0:01:56]} 22. Ne3 {[%clk 0:02:25]}  dxe2 {[%clk 0:01:52]} 23. Rfe1 {[%clk 0:02:25]}  Ba6 {[%clk 0:01:48]} 24. Nf5+ {[%clk 0:02:24]}  Kg6 {[%clk 0:01:46]} 25. Nd4 {[%clk 0:02:23]}  Re8 {[%clk 0:01:43]} 26. Kf2 {[%clk 0:02:21]}  h5 {[%clk 0:01:12]} 27. Rc6 {[%clk 0:02:13]}  Bd3 {[%clk 0:01:11]} 28. b4 {[%clk 0:01:58]}  Bc4 {[%clk 0:00:56]} 29. a4 {[%clk 0:01:56]}  a6 {[%clk 0:00:56]} 30. Nxe2 {[%clk 0:01:35]}  Rde7 {[%clk 0:00:40]} 31. Nf4+ {[%clk 0:01:28]}  Kf5 {[%clk 0:00:40]} 32. Rxe7 {[%clk 0:01:17]}  Rxe7 {[%clk 0:00:40]} 33. Rc5 {[%clk 0:01:14]}  Ke5 {[%clk 0:00:37]} 34. Nxh5 {[%clk 0:01:10]}  Kd4 {[%clk 0:00:36]} 35. Nf4 {[%clk 0:01:06]}  Re5 {[%clk 0:00:32]} 36. h4 {[%clk 0:01:04]}  Kc3 {[%clk 0:00:31]} 37. h5 {[%clk 0:00:59]}  Kxb4 {[%clk 0:00:28]} 38. Rc8 {[%clk 0:00:58]}  d4 {[%clk 0:00:24]} 39. h6 {[%clk 0:00:58]}  d3 {[%clk 0:00:23]} 40. h7 {[%clk 0:00:52]}  d2 {[%clk 0:00:22]} 41. Rd8 {[%clk 0:00:46]}  Bd5 {[%clk 0:00:18]} 42. h8=Q {[%clk 0:00:28]}  d1=Q {[%clk 0:00:17]} 43. Rb8+ {[%clk 0:00:28]}  Kxa4 {[%clk 0:00:16]} 44. Kg2 {[%clk 0:00:11]}  Qxf3+ {[%clk 0:00:14]} 45. Kh3 {[%clk 0:00:09]}  Qh1+ {[%clk 0:00:14]} 46. Kg4 {[%clk 0:00:08]}  Rg5# {[%clk 0:00:15]} 0-1


[Site "https://www.chess.com"]

[Event "Titled Tuesday Blitz February 07 Early 2023"]
[White "Ilkhomi, Jaloliddin"]
[Black "Kostiukov, Alexandr"]
[WhiteFideId "14700948"]
[BlackFideId "14108100"]
[WhiteElo "1997"]
[BlackElo "2271"]
[Result "1-0"]
[Round "07"]
[TimeControl "180+2"]
[Date "2023.02.07"]
[WhiteClock "0:00:34"]
[BlackClock "0:00:04"]

1. Nf3 {[%clk 0:03:00]}  g6 {[%clk 0:02:52]} 2. d4 {[%clk 0:02:57]}  Bg7 {[%clk 0:02:52]} 3. c3 {[%clk 0:02:56]}  d6 {[%clk 0:02:52]} 4. Bg5 {[%clk 0:02:56]}  h6 {[%clk 0:02:52]} 5. Bh4 {[%clk 0:02:56]}  f5 {[%clk 0:02:53]} 6. e3 {[%clk 0:02:54]}  g5 {[%clk 0:02:50]} 7. Bg3 {[%clk 0:02:53]}  Nf6 {[%clk 0:02:51]} 8. Bd3 {[%clk 0:02:52]}  O-O {[%clk 0:02:50]} 9. Nbd2 {[%clk 0:02:49]}  Nc6 {[%clk 0:02:49]} 10. Qc2 {[%clk 0:02:49]}  Nh5 {[%clk 0:02:49]} 11. O-O-O {[%clk 0:02:46]}  e5 {[%clk 0:02:35]} 12. dxe5 {[%clk 0:02:31]}  dxe5 {[%clk 0:02:35]} 13. h4 {[%clk 0:02:32]}  g4 {[%clk 0:02:14]} 14. Ne1 {[%clk 0:02:20]}  Be6 {[%clk 0:02:02]} 15. Bh2 {[%clk 0:02:10]}  Qe7 {[%clk 0:01:54]} 16. Bc4 {[%clk 0:01:48]}  Kh8 {[%clk 0:01:35]} 17. Nd3 {[%clk 0:01:32]}  f4 {[%clk 0:01:16]} 18. exf4 {[%clk 0:01:31]}  Bxc4 {[%clk 0:01:13]} 19. Nxc4 {[%clk 0:01:30]}  exf4 {[%clk 0:01:10]} 20. Rhe1 {[%clk 0:01:30]}  Qf7 {[%clk 0:01:02]} 21. Nce5 {[%clk 0:01:31]}  Nxe5 {[%clk 0:00:17]} 22. Nxe5 {[%clk 0:01:32]}  Qxa2 {[%clk 0:00:17]} 23. Ng6+ {[%clk 0:01:28]}  Kg8 {[%clk 0:00:17]} 24. Rd7 {[%clk 0:01:22]}  Rf7 {[%clk 0:00:11]} 25. Rxf7 {[%clk 0:00:48]}  Qxf7 {[%clk 0:00:10]} 26. Re7 {[%clk 0:00:47]}  Qf6 {[%clk 0:00:06]} 27. Qb3+ {[%clk 0:00:34]}  Kh7 {[%clk 0:00:04]} 28. Re6 {[%clk 0:00:34]} 1-0


[Site "https://www.chess.com"]

[Event "Titled Tuesday Blitz February 07 Early 2023"]
[White "Babikov, Ivan"]
[Black "Decuigniere, Tom"]
[WhiteFideId "4161106"]
[BlackFideId "26093820"]
[WhiteElo "2239"]
[BlackElo "2382"]
[Result "0-1"]
[Round "07"]
[TimeControl "180+2"]
[Date "2023.02.07"]
[WhiteClock "0:01:46"]
[BlackClock "0:01:47"]

1. Nf3 {[%clk 0:03:00]}  c5 {[%clk 0:02:59]} 2. g3 {[%clk 0:03:00]}  g6 {[%clk 0:03:00]} 3. Bg2 {[%clk 0:03:00]}  Bg7 {[%clk 0:03:01]} 4. d4 {[%clk 0:03:00]}  cxd4 {[%clk 0:03:01]} 5. Nxd4 {[%clk 0:03:00]}  Nc6 {[%clk 0:03:01]} 6. Nxc6 {[%clk 0:03:00]}  bxc6 {[%clk 0:03:01]} 7. O-O {[%clk 0:03:00]}  Nf6 {[%clk 0:03:02]} 8. Nc3 {[%clk 0:03:00]}  O-O {[%clk 0:03:02]} 9. e4 {[%clk 0:02:58]}  Rb8 {[%clk 0:03:00]} 10. Rb1 {[%clk 0:02:51]}  d6 {[%clk 0:02:53]} 11. Be3 {[%clk 0:02:51]}  Qa5 {[%clk 0:02:49]} 12. a3 {[%clk 0:02:47]}  Be6 {[%clk 0:02:48]} 13. Qd2 {[%clk 0:02:44]}  Rfc8 {[%clk 0:02:36]} 14. Nd5 {[%clk 0:02:31]}  Qxd2 {[%clk 0:02:35]} 15. Nxe7+ {[%clk 0:02:32]}  Kf8 {[%clk 0:02:35]} 16. Bxd2 {[%clk 0:02:33]}  Kxe7 {[%clk 0:02:35]} 17. e5 {[%clk 0:02:27]}  dxe5 {[%clk 0:02:18]} 18. Bb4+ {[%clk 0:02:27]}  c5 {[%clk 0:02:18]} 19. Bc3 {[%clk 0:02:27]}  Nd5 {[%clk 0:02:15]} 20. Bd2 {[%clk 0:02:23]}  Nb6 {[%clk 0:02:13]} 21. b3 {[%clk 0:02:21]}  f5 {[%clk 0:02:09]} 22. a4 {[%clk 0:02:20]}  e4 {[%clk 0:02:07]} 23. Rbd1 {[%clk 0:02:19]}  Rd8 {[%clk 0:02:03]} 24. Bf4 {[%clk 0:02:17]}  Rbc8 {[%clk 0:01:58]} 25. Rfe1 {[%clk 0:02:04]}  Nd5 {[%clk 0:01:58]} 26. Bd2 {[%clk 0:01:59]}  Nc3 {[%clk 0:01:57]} 27. Bg5+ {[%clk 0:01:54]}  Bf6 {[%clk 0:01:57]} 28. Bxf6+ {[%clk 0:01:54]}  Kxf6 {[%clk 0:01:58]} 29. Ra1 {[%clk 0:01:52]}  Rd2 {[%clk 0:01:57]} 30. Re3 {[%clk 0:01:45]}  Rxc2 {[%clk 0:01:55]} 31. Rae1 {[%clk 0:01:44]}  Nd5 {[%clk 0:01:49]} 32. R3e2 {[%clk 0:01:44]}  Rxe2 {[%clk 0:01:49]} 33. Rxe2 {[%clk 0:01:44]}  Rb8 {[%clk 0:01:48]} 34. h4 {[%clk 0:01:43]}  Rxb3 {[%clk 0:01:47]} 35. Kh2 {[%clk 0:01:44]}  c4 {[%clk 0:01:47]} 36. Rc2 {[%clk 0:01:45]}  c3 {[%clk 0:01:47]} 37. Bf1 {[%clk 0:01:45]}  Rb2 {[%clk 0:01:47]} 38. Rxc3 {[%clk 0:01:46]}  Nxc3 {[%clk 0:01:47]} 0-1


[Site "https://www.chess.com"]

[Event "Titled Tuesday Blitz February 07 Early 2023"]
[White "Andreev, Konstantin"]
[Black "Brilej, Jaka"]
[WhiteFideId "24239305"]
[BlackFideId "14618818"]
[WhiteElo "2195"]
[BlackElo "2321"]
[Result "1-0"]
[Round "07"]
[TimeControl "180+2"]
[Date "2023.02.07"]
[WhiteClock "0:01:38"]
[BlackClock "0:00:06"]

1. e4 {[%clk 0:03:00]}  d6 {[%clk 0:02:59]} 2. Nf3 {[%clk 0:03:01]}  Nf6 {[%clk 0:02:58]} 3. Nc3 {[%clk 0:03:00]}  g6 {[%clk 0:02:58]} 4. d4 {[%clk 0:02:59]}  Bg7 {[%clk 0:02:58]} 5. h4 {[%clk 0:02:59]}  Bg4 {[%clk 0:02:56]} 6. Be2 {[%clk 0:02:58]}  Nc6 {[%clk 0:02:46]} 7. Be3 {[%clk 0:02:58]}  e5 {[%clk 0:02:22]} 8. d5 {[%clk 0:02:45]}  Ne7 {[%clk 0:02:14]} 9. Ng5 {[%clk 0:02:45]}  Bxe2 {[%clk 0:02:11]} 10. Qxe2 {[%clk 0:02:46]}  h6 {[%clk 0:02:12]} 11. Nh3 {[%clk 0:02:47]}  c6 {[%clk 0:02:10]} 12. dxc6 {[%clk 0:02:46]}  bxc6 {[%clk 0:02:09]} 13. O-O-O {[%clk 0:02:47]}  Qc7 {[%clk 0:01:59]} 14. f3 {[%clk 0:02:45]}  O-O {[%clk 0:01:49]} 15. g4 {[%clk 0:02:44]}  d5 {[%clk 0:01:50]} 16. Bc5 {[%clk 0:02:41]}  d4 {[%clk 0:01:44]} 17. Na4 {[%clk 0:02:41]}  Rfb8 {[%clk 0:01:40]} 18. Qc4 {[%clk 0:02:40]}  Nc8 {[%clk 0:01:30]} 19. f4 {[%clk 0:02:26]}  Nb6 {[%clk 0:01:26]} 20. Nxb6 {[%clk 0:02:12]}  axb6 {[%clk 0:01:26]} 21. fxe5 {[%clk 0:02:13]}  Nxg4 {[%clk 0:01:15]} 22. Bd6 {[%clk 0:02:10]}  Nxe5 {[%clk 0:00:51]} 23. Qxd4 {[%clk 0:02:02]}  c5 {[%clk 0:00:17]} 24. Bxc7 {[%clk 0:02:00]}  cxd4 {[%clk 0:00:17]} 25. Bxb8 {[%clk 0:02:00]}  Rxb8 {[%clk 0:00:17]} 26. Rxd4 {[%clk 0:01:59]}  b5 {[%clk 0:00:16]} 27. Rd5 {[%clk 0:01:58]}  Nc4 {[%clk 0:00:16]} 28. c3 {[%clk 0:01:56]}  b4 {[%clk 0:00:15]} 29. Rc5 {[%clk 0:01:51]}  Ne5 {[%clk 0:00:09]} 30. Kc2 {[%clk 0:01:48]}  bxc3 {[%clk 0:00:08]} 31. bxc3 {[%clk 0:01:49]}  Ra8 {[%clk 0:00:08]} 32. Ra1 {[%clk 0:01:45]}  Nd7 {[%clk 0:00:08]} 33. Rc7 {[%clk 0:01:43]}  Nb6 {[%clk 0:00:09]} 34. Nf4 {[%clk 0:01:41]}  Be5 {[%clk 0:00:05]} 35. Nd5 {[%clk 0:01:39]}  Bxc7 {[%clk 0:00:05]} 36. Nxc7 {[%clk 0:01:39]}  Rc8 {[%clk 0:00:05]} 37. Nd5 {[%clk 0:01:38]}  Nd7 {[%clk 0:00:06]} 38. Ne7+ {[%clk 0:01:38]} 1-0


[Site "https://www.chess.com"]

[Event "Titled Tuesday Blitz February 07 Early 2023"]
[White "Borrmann, Laurenz"]
[Black "Fernandez Siles, Luis"]
[WhiteFideId "312187930"]
[BlackFideId "2209420"]
[WhiteElo "2304"]
[BlackElo "2218"]
[Result "1-0"]
[Round "07"]
[TimeControl "180+2"]
[Date "2023.02.07"]
[WhiteClock "0:00:23"]
[BlackClock "0:00:08"]

1. d4 {[%clk 0:02:59]}  Nf6 {[%clk 0:02:59]} 2. c4 {[%clk 0:02:59]}  g6 {[%clk 0:03:00]} 3. Nc3 {[%clk 0:02:58]}  Bg7 {[%clk 0:03:00]} 4. e4 {[%clk 0:02:57]}  d6 {[%clk 0:03:00]} 5. h3 {[%clk 0:02:56]}  O-O {[%clk 0:02:59]} 6. Be3 {[%clk 0:02:55]}  Na6 {[%clk 0:02:54]} 7. g4 {[%clk 0:02:32]}  c5 {[%clk 0:02:52]} 8. Nge2 {[%clk 0:02:32]}  cxd4 {[%clk 0:02:10]} 9. Nxd4 {[%clk 0:02:33]}  Nc5 {[%clk 0:02:07]} 10. Bg2 {[%clk 0:02:30]}  e5 {[%clk 0:01:54]} 11. Ndb5 {[%clk 0:02:17]}  Qa5 {[%clk 0:01:35]} 12. O-O {[%clk 0:01:58]}  Be6 {[%clk 0:01:31]} 13. Qxd6 {[%clk 0:01:34]}  Bxc4 {[%clk 0:01:26]} 14. Qxc5 {[%clk 0:01:27]}  Bxf1 {[%clk 0:01:07]} 15. Rxf1 {[%clk 0:01:27]}  Rfc8 {[%clk 0:01:04]} 16. Qa3 {[%clk 0:01:24]}  Qxa3 {[%clk 0:00:44]} 17. Nxa3 {[%clk 0:01:25]}  Bf8 {[%clk 0:00:43]} 18. Nd5 {[%clk 0:01:15]}  Nxd5 {[%clk 0:00:39]} 19. exd5 {[%clk 0:01:16]}  Bc5 {[%clk 0:00:34]} 20. Nb5 {[%clk 0:01:10]}  a6 {[%clk 0:00:31]} 21. Nc3 {[%clk 0:01:07]}  b5 {[%clk 0:00:29]} 22. d6 {[%clk 0:00:44]}  Ra7 {[%clk 0:00:29]} 23. Rd1 {[%clk 0:00:39]}  Bxe3 {[%clk 0:00:21]} 24. fxe3 {[%clk 0:00:40]}  Rd8 {[%clk 0:00:20]} 25. g5 {[%clk 0:00:32]}  h6 {[%clk 0:00:19]} 26. h4 {[%clk 0:00:31]}  hxg5 {[%clk 0:00:19]} 27. hxg5 {[%clk 0:00:31]}  f5 {[%clk 0:00:19]} 28. gxf6 {[%clk 0:00:29]}  Kf7 {[%clk 0:00:20]} 29. Ne4 {[%clk 0:00:29]}  Ke6 {[%clk 0:00:17]} 30. Bh3+ {[%clk 0:00:27]}  Kf7 {[%clk 0:00:13]} 31. d7 {[%clk 0:00:26]}  a5 {[%clk 0:00:09]} 32. Rd6 {[%clk 0:00:23]}  a4 {[%clk 0:00:08]} 33. Ng5+ {[%clk 0:00:24]}  Kf8 {[%clk 0:00:08]} 34. Ne6+ {[%clk 0:00:23]} 1-0


[Site "https://www.chess.com"]

[Event "Titled Tuesday Blitz February 07 Early 2023"]
[White "Prieto Aranguren, Alain"]
[Black "Ljukin, Sergei"]
[WhiteFideId "2268906"]
[BlackFideId "14102200"]
[WhiteElo "2258"]
[BlackElo "2362"]
[Result "0-1"]
[Round "07"]
[TimeControl "180+2"]
[Date "2023.02.07"]
[WhiteClock "0:00:03"]
[BlackClock "0:00:10"]

1. d4 {[%clk 0:03:00]}  d5 {[%clk 0:02:52]} 2. c4 {[%clk 0:02:59]}  c6 {[%clk 0:02:52]} 3. Nf3 {[%clk 0:02:57]}  Nf6 {[%clk 0:02:52]} 4. Nc3 {[%clk 0:02:57]}  dxc4 {[%clk 0:02:52]} 5. a4 {[%clk 0:02:54]}  Bf5 {[%clk 0:02:52]} 6. e3 {[%clk 0:02:53]}  e6 {[%clk 0:02:50]} 7. Bxc4 {[%clk 0:02:53]}  Bb4 {[%clk 0:02:50]} 8. O-O {[%clk 0:02:53]}  Nbd7 {[%clk 0:02:50]} 9. Qe2 {[%clk 0:02:52]}  O-O {[%clk 0:02:49]} 10. e4 {[%clk 0:02:51]}  Bg4 {[%clk 0:02:50]} 11. Bd3 {[%clk 0:02:44]}  e5 {[%clk 0:02:47]} 12. dxe5 {[%clk 0:02:31]}  Nxe5 {[%clk 0:02:46]} 13. Bc2 {[%clk 0:02:31]}  Qc7 {[%clk 0:02:18]} 14. Bg5 {[%clk 0:02:24]}  Nh5 {[%clk 0:02:05]} 15. Rad1 {[%clk 0:02:12]}  Bxf3 {[%clk 0:02:01]} 16. gxf3 {[%clk 0:02:10]}  Ng6 {[%clk 0:02:02]} 17. Kh1 {[%clk 0:02:02]}  Nhf4 {[%clk 0:01:53]} 18. Qe3 {[%clk 0:02:01]}  Bd6 {[%clk 0:01:30]} 19. Rg1 {[%clk 0:01:55]}  Be5 {[%clk 0:01:25]} 20. Bb3 {[%clk 0:01:52]}  Kh8 {[%clk 0:01:20]} 21. Rg4 {[%clk 0:01:47]}  f6 {[%clk 0:01:07]} 22. Bh4 {[%clk 0:01:39]}  Nxh4 {[%clk 0:00:56]} 23. Rxh4 {[%clk 0:01:38]}  Rad8 {[%clk 0:00:55]} 24. Rg1 {[%clk 0:01:37]}  Rd3 {[%clk 0:00:52]} 25. Qe1 {[%clk 0:01:35]}  Rxf3 {[%clk 0:00:46]} 26. Rf1 {[%clk 0:01:16]}  Rh3 {[%clk 0:00:38]} 27. f3 {[%clk 0:01:07]}  Rxh4 {[%clk 0:00:22]} 28. Qxh4 {[%clk 0:01:06]}  Rd8 {[%clk 0:00:19]} 29. Rg1 {[%clk 0:01:00]}  Rd2 {[%clk 0:00:17]} 30. Rg3 {[%clk 0:00:25]}  Ng6 {[%clk 0:00:15]} 31. Nb1 {[%clk 0:00:12]}  Rxb2 {[%clk 0:00:13]} 32. Qh5 {[%clk 0:00:07]}  Rxb1+ {[%clk 0:00:11]} 33. Kg2 {[%clk 0:00:07]}  Bxg3 {[%clk 0:00:10]} 34. Bf7 {[%clk 0:00:04]}  Rb2+ {[%clk 0:00:10]} 35. Kh3 {[%clk 0:00:03]}  Rxh2+ {[%clk 0:00:10]} 36. Kg4 {[%clk 0:00:03]}  Qf4# {[%clk 0:00:10]} 0-1


[Site "https://www.chess.com"]